bitfinex/quotes_SOLUSD_20240930
["timestamp","ask_amount","ask_price","bid_price","bid_amount"]
[1727690198531,2.0,155.66,155.63,10.37912849]
[1727690199803,2.0,155.66,155.64,20.25098]
[1727690200216,6.1688,155.7,155.62,30.0]
[1727690200217,2.0,155.64,155.62,30.0]
[1727690201016,2.0,155.64,155.61,10.37912849]
[1727690201217,2.0,155.64,155.63,1.28490551]
[1727690201415,2.0,155.68,155.64,0.25098]
[1727690201607,6.1688,155.7,155.67,10.63010849]
[1727690201608,2.0,155.7,155.67,10.63010849]
[1727690201808,2.0,155.7,155.68,1.28440998]
[1727690202106,2.0,155.68,155.67,0.25098]
[1727690202310,2.0,155.68,155.67,0.12549]
[1727690202906,2.0,155.68,155.66,0.25098]
[1727690204431,2.0,155.66,155.59,20.12549]
[1727690204731,2.0,155.66,155.65,0.25098]
[1727690205031,2.0,155.68,155.65,1.53563832]
[1727690205206,2.0,155.68,155.67,10.63010849]
[1727690206919,2.0,155.68,155.67,0.12549]
[1727690207232,2.0,155.68,155.66,0.12549]
[1727690207451,2.0,155.68,155.66,1.53556406]
[1727690207629,2.0,155.68,155.66,0.25098]
[1727690208922,2.0,155.68,155.65,10.37912849]
[1727690209142,2.0,155.64,155.63,10.37912849]
[1727690209642,2.0,155.64,155.59,30.0]
[1727690209936,2.0,155.64,155.6,10.37912849]
[1727690210120,2.0,155.64,155.61,30.0]
[1727690210316,2.0,155.62,155.61,30.0]
[1727690210723,2.0,155.62,155.61,1.28497222]
[1727690210914,2.0,155.62,155.6,10.37912849]
[1727690211544,2.0,155.62,155.58,16.24692311]
[1727690212024,2.0,155.62,155.6,0.25098]
[1727690212216,2.0,155.62,155.61,1.5359455]
[1727690212418,2.0,155.62,155.61,0.25098]
[1727690212822,2.0,155.62,155.6,0.25098]
[1727690214209,15.9075,155.65,155.55,36.24692311]
[1727690214210,2.0,155.58,155.55,36.24692311]
[1727690215628,2.0,155.58,155.56,0.12549]
[1727690215935,2.0,155.6,155.56,0.12549]
[1727690216835,2.0,155.6,155.56,24.027864]
[1727690217039,2.0,155.6,155.58,0.25098]
[1727690218047,2.0,155.6,155.59,1.41068743]
[1727690218342,2.0,155.6,155.59,0.12549]
[1727690219043,2.0,155.6,155.58,0.25098]
[1727690220722,2.0,155.57,155.49,6.4165]
[1727690221037,2.0,155.55,155.51,30.0]
[1727690221642,2.0,155.55,155.52,1.28562635]
[1727690221841,2.0,155.55,155.51,30.0]
[1727690222129,2.0,155.55,155.52,1.28552274]
[1727690222329,2.0,155.55,155.51,30.0]
[1727690222530,2.0,155.55,155.52,20.12549]
[1727690222947,2.0,155.55,155.53,0.12549]
[1727690223331,2.0,155.55,155.52,24.027864]
[1727690223651,2.0,155.55,155.54,0.25098]
[1727690224024,2.0,155.57,155.54,24.027864]
[1727690224446,2.0,155.57,155.54,0.25098]
[1727690225331,2.0,155.54,155.5,16.24692311]
[1727690226726,2.0,155.54,155.51,23.776884]
[1727690226932,2.0,155.54,155.52,0.12549]
[1727690227133,2.0,155.54,155.47,16.24692311]
[1727690227326,2.0,155.52,155.49,50.0]
[1727690227539,2.0,155.52,155.5,1.28582286]
[1727690227950,2.0,155.58,155.51,21.28574781]
[1727690228151,2.0,155.58,155.56,20.0]
[1727690228451,2.0,155.6,155.56,21.28524772]
[1727690228626,2.0,155.6,155.57,0.12549]
[1727690228828,2.0,155.6,155.58,1.28524092]
[1727690229329,2.0,155.58,155.57,0.25098]
[1727690230153,2.0,155.56,155.51,23.776884]
[1727690230324,2.0,155.54,155.52,50.0]
[1727690230522,2.0,155.54,155.52,30.0]
[1727690231039,2.0,155.54,155.53,1.28573307]
[1727690231227,2.0,155.54,155.48,5.0]
[1727690231451,2.0,155.52,155.49,30.0]
[1727690231952,2.0,155.52,155.48,5.0]
[1727690232528,2.0,155.52,155.49,20.0]
[1727690232726,2.0,155.52,155.5,0.12549]
[1727690233148,2.0,155.52,155.49,20.0]
[1727690233342,2.0,155.5,155.48,5.0]
[1727690233542,2.0,155.54,155.48,21.24692311]
[1727690233746,2.0,155.54,155.5,16.24692311]
[1727690233952,21.4173,155.57,155.52,16.24692311]
[1727690233953,2.0,155.57,155.52,16.24692311]
[1727690234261,2.0,155.59,155.54,16.24692311]
[1727690234549,2.0,155.59,155.55,20.0]
[1727690234760,2.0,155.59,155.57,0.12549]
[1727690235060,2.0,155.55,155.49,30.0]
[1727690235224,2.0,155.55,155.53,0.12549]
[1727690236036,2.0,155.55,155.53,1.41105728]
[1727690236234,2.0,155.55,155.53,0.12549]
[1727690237363,2.0,155.59,155.55,0.12549]
[1727690237545,2.0,155.59,155.57,0.12549]
[1727690237858,2.0,155.59,155.57,1.41082073]
[1727690238167,2.0,155.59,155.58,0.12549]
[1727690238337,2.0,155.59,155.58,40.27478711]
[1727690238541,2.0,155.61,155.58,40.27478711]
[1727690238744,2.0,155.61,155.6,0.25098]
[1727690239338,2.0,155.61,155.56,16.24692311]
[1727690239545,2.0,155.58,155.57,20.0]
[1727690239763,2.0,155.58,155.57,0.25098]
[1727690240261,2.0,155.56,155.55,43.776884]
[1727690240439,6.4263,155.61,155.55,43.776884]
[1727690240440,2.0,155.58,155.55,43.902374]
[1727690240758,2.0,155.58,155.57,20.0]
[1727690240969,2.0,155.6,155.58,23.902374]
[1727690241469,2.0,155.6,155.59,0.12549]
[1727690241865,2.0,155.6,155.59,1.53610466]
[1727690242257,2.0,155.6,155.59,24.027864]
[1727690242565,2.0,155.6,155.59,25.31297412]
[1727690242760,2.0,155.62,155.61,0.12549]
[1727690243367,2.0,155.65,155.61,20.12549]
[1727690243547,2.0,155.65,155.63,0.12549]
[1727690244343,2.0,155.63,155.62,0.25098]
[1727690244544,21.8157,155.68,155.59,43.776884]
[1727690244545,2.0,155.61,155.59,43.776884]
[1727690244740,2.0,155.61,155.6,0.25098]
[1727690246860,2.0,155.63,155.61,23.776884]
[1727690247081,21.8157,155.68,155.51,15.4816]
[1727690247082,6.4276,155.58,155.51,15.4816]
[1727690247374,6.4276,155.58,155.5,6.1731]
[1727690247375,2.0,155.55,155.52,30.0]
[1727690247946,2.0,155.55,155.53,1.28558252]
[1727690248172,2.0,155.57,155.53,1.28558252]
[1727690248380,2.0,155.57,155.53,16.24692311]
[1727690249249,2.0,155.59,155.54,20.0]
[1727690249569,2.0,155.59,155.55,24.027864]
[1727690249864,2.0,155.57,155.55,0.25098]
[1727690250248,2.0,155.57,155.56,25.31322451]
[1727690250646,2.0,155.57,155.56,24.027864]
[1727690252069,2.0,155.57,155.47,6.71015889]
[1727690252070,6.4288,155.55,155.47,6.71015889]
[1727690252255,2.0,155.53,155.47,6.71015889]
[1727690252571,2.0,155.51,155.47,6.71015889]
[1727690252770,2.0,155.51,155.46,16.24692311]
[1727690252972,2.0,155.51,155.47,6.71427124]
[1727690253356,2.0,155.51,155.46,16.24692311]
[1727690253550,2.0,155.51,155.49,20.0]
[1727690254250,2.0,155.51,155.5,44.027864]
[1727690254862,2.0,155.53,155.51,20.25098]
[1727690255061,2.0,155.53,155.52,24.027864]
[1727690255458,2.0,155.53,155.52,25.31348273]
[1727690255776,2.0,155.53,155.52,44.027864]
[1727690257475,2.0,155.53,155.52,45.31345761]
[1727690258063,2.0,155.53,155.52,44.027864]
[1727690261455,2.0,155.53,155.52,0.25098]
[1727690262056,2.0,155.53,155.48,5.0]
[1727690262057,2.0,155.5,155.48,5.0]
[1727690262258,6.4312,155.49,155.48,5.0]
[1727690262472,2.0,155.5,155.48,5.0]
[1727690262671,2.0,155.52,155.49,1.28597236]
[1727690262978,2.0,155.52,155.48,21.24692311]
[1727690263490,2.0,155.52,155.5,0.12549]
[1727690263653,2.0,155.52,155.51,1.4112941]
[1727690263852,2.0,155.52,155.51,0.12549]
[1727690264263,2.0,155.52,155.5,0.12549]
[1727690264583,2.0,155.52,155.5,25.31368468]
[1727690264783,2.0,155.52,155.5,24.027864]
[1727690277588,2.0,155.49,155.48,5.0]
[1727690277773,8.4312,155.49,155.48,5.0]
[1727690278871,2.0,155.42,155.35,52.20142796]
[1727690279193,22.7376,155.48,155.39,16.24692311]
[1727690279194,2.0,155.44,155.39,16.24692311]
[1727690279486,2.0,155.42,155.39,16.24692311]
[1727690279694,2.0,155.42,155.36,30.0]
[1727690279989,2.0,155.42,155.39,16.24692311]
[1727690280692,2.0,155.4,155.37,16.24692311]
[1727690280888,2.0,155.42,155.39,16.24692311]
[1727690281785,2.0,155.42,155.39,46.24692311]
[1727690281978,2.0,155.42,155.4,43.776884]
[1727690282178,2.0,155.42,155.41,0.12549]
[1727690282574,2.0,155.42,155.41,0.25098]
[1727690284271,2.0,155.4,155.38,16.24692311]
[1727690284477,2.0,155.42,155.39,21.28659509]
[1727690284682,2.0,155.42,155.41,20.0]
[1727690285589,2.0,155.46,155.41,21.28650381]
[1727690285773,2.0,155.46,155.44,20.0]
[1727690286100,2.0,155.46,155.43,16.24692311]
[1727690286101,2.0,155.46,155.45,20.12549]
[1727690286409,2.0,155.46,155.45,20.25098]
[1727690286695,2.0,155.46,155.45,44.027864]
[1727690287879,2.0,155.48,155.47,0.12549]
[1727690288081,2.0,155.48,155.47,25.31401536]
[1727690288377,2.0,155.48,155.41,30.0]
[1727690288378,2.0,155.48,155.42,20.0]
[1727690288579,2.0,155.45,155.44,44.027864]
[1727690288986,2.0,155.45,155.44,20.0]
[1727690289605,2.0,155.45,155.42,20.0]
[1727690289774,37.7069,155.52,155.35,58.24574785]
[1727690289775,2.0,155.43,155.35,58.24574785]
[1727690289976,2.0,155.41,155.37,16.24692311]
[1727690290307,2.0,155.37,155.36,4.09513085]
[1727690290503,2.0,155.39,155.35,1.28692116]
[1727690290677,2.0,155.39,155.34,18.39692311]
[1727690290994,2.0,155.39,155.35,16.24692311]
[1727690291186,8.5199,155.41,155.35,16.24692311]
[1727690291382,2.0,155.41,155.35,16.24692311]
[1727690291795,2.0,155.41,155.34,2.15]
[1727690291998,2.0,155.41,155.37,16.24692311]
[1727690292188,2.0,155.41,155.38,20.12549]
[1727690292498,2.0,155.41,155.4,44.027864]
[1727690294817,2.0,155.41,155.4,24.027864]
[1727690294982,2.0,155.41,155.4,44.027864]
[1727690296814,2.0,155.41,155.4,0.25098]
[1727690297312,2.0,155.41,155.36,16.24692311]
[1727690297313,2.0,155.36,155.34,2.15]
[1727690298211,8.437,155.36,155.34,2.15]
[1727690298386,2.0,155.36,155.34,2.15]
[1727690299306,2.0,155.36,155.35,1.28721673]
[1727690299514,2.0,155.36,155.34,2.15]
[1727690300992,2.0,155.36,155.34,22.15]
[1727690301599,2.0,155.36,155.35,0.12549]
[1727690302208,2.0,155.36,155.35,0.25098]
[1727690302610,2.0,155.36,155.35,44.027864]
[1727690302813,2.0,155.36,155.35,61.561923]
[1727690302990,2.0,155.38,155.37,44.027864]
[1727690303388,2.0,155.38,155.37,60.27478711]
[1727690303603,2.0,155.4,155.39,24.027864]
[1727690303808,2.0,155.4,155.39,44.027864]
[1727690306518,2.0,155.4,155.34,2.15]
[1727690306723,2.0,155.38,155.36,36.24692311]
[1727690307899,2.0,155.38,155.37,0.25098]
[1727690308818,2.0,155.36,155.35,46.24692311]
[1727690309026,2.0,155.36,155.35,70.27478711]
[1727690309803,2.0,155.36,155.35,24.027864]
[1727690310016,2.0,155.36,155.35,23.902374]
[1727690310215,2.0,155.36,155.35,0.12549]
[1727690310725,2.0,155.36,155.34,22.15]
[1727690311031,2.0,155.36,155.34,2.15]
[1727690311214,2.0,155.36,155.34,3.43714284]
[1727690311402,2.0,155.36,155.34,2.15]
[1727690312225,2.0,155.36,155.35,0.25098]
[1727690312905,2.0,155.36,155.34,2.15]
[1727690313909,8.4366,155.36,155.34,2.15]
[1727690314104,2.0,155.36,155.34,2.15]
[1727690314306,6.437,155.35,155.34,2.15]
[1727690314532,2.0,155.36,155.34,2.15]
[1727690315635,8.4367,155.36,155.34,2.15]
[1727690316127,2.0,155.36,155.34,2.15]
[1727690316430,6.437,155.35,155.34,2.15]
[1727690317438,2.0,155.3,155.29,16.24692311]
[1727690317603,2.0,155.3,155.29,46.24692311]
[1727690318617,2.0,155.3,155.29,16.24692311]
[1727690319217,1.4633,155.33,155.13,2.15]
[1727690319424,2.0,155.14,155.13,2.15]
[1727690321218,23.5403,155.14,155.13,2.15]
[1727690321422,2.0,155.14,155.13,2.15]
[1727690321732,2.0,155.14,155.13,0.65]
[1727690323227,26.027864,155.14,155.13,0.65]
[1727690323431,25.776884,155.14,155.13,0.65]
[1727690323633,2.0,155.14,155.13,0.65]
[1727690330654,8.4457,155.14,155.13,0.65]
[1727690338447,2.0,155.14,155.13,0.65]
[1727690340749,8.4457,155.14,155.13,0.65]
[1727690341529,2.0,155.14,155.13,0.65]
[1727690343154,8.4457,155.14,155.13,0.65]
[1727690348440,2.0,155.14,155.13,0.65]
[1727690352966,8.4457,155.14,155.13,0.65]
[1727690365463,8.4457,155.14,155.13,4.62734066]
[1727690369558,8.4457,155.14,155.13,0.65]
[1727690370170,8.4457,155.14,155.13,0.0001]
[1727690370556,14.6723,155.14,155.13,0.0001]
[1727690370957,29.931,155.14,155.13,0.0001]
[1727690371160,73.248864,155.14,155.13,0.0001]
[1727690371466,2.0,155.03,154.98,16.35327303]
[1727690371666,2.0,155.03,154.99,4.00470421]
[1727690371979,8.4504,155.03,155.0,4.00470421]
[1727690372161,8.4504,155.03,155.01,4.00470421]
[1727690372484,8.4504,155.03,155.02,4.00470421]
[1727690372993,2.0,155.01,154.99,4.00470421]
[1727690373157,2.0,155.01,155.0,4.00470421]
[1727690373361,2.0,155.03,155.0,20.35797724]
[1727690373654,2.0,155.03,155.01,4.00470421]
[1727690374083,2.0,155.03,155.01,5.29466171]
[1727690374262,2.0,155.03,155.01,4.00470421]
[1727690374464,2.0,155.03,155.01,23.902374]
[1727690375057,6.4528,154.98,154.94,16.35327303]
[1727690375381,8.452,154.99,154.95,3.99644508]
[1727690375581,2.0,154.96,154.94,3.99644508]
[1727690376080,6.4523,154.99,154.91,0.3991305]
[1727690376081,8.4549,154.92,154.91,0.3991305]
[1727690379893,2.0,154.92,154.91,0.3991305]
[1727690382467,8.4549,154.92,154.91,0.3991305]
[1727690385572,2.0,154.92,154.91,0.3991305]
[1727690385787,8.4549,154.92,154.91,0.3991305]
[1727690392979,8.4549,154.92,154.83,2.15]
[1727690392980,8.4582,154.84,154.83,2.15]
[1727690393597,2.0,154.84,154.83,2.15]
[1727690393988,8.4582,154.84,154.83,2.15]
[1727690395790,8.58369,154.84,154.83,2.15]
[1727690395992,8.4582,154.84,154.83,2.15]
[1727690396176,32.486064,154.84,154.83,2.15]
[1727690396515,46.36888237,154.84,154.83,2.15]
[1727690396809,55.73611403,154.84,154.83,2.15]
[1727690397010,8.4603,154.79,154.78,0.8063382]
[1727690397975,2.0,154.79,154.78,0.8063382]
[1727690398688,8.4603,154.79,154.78,0.8063382]
[1727690400179,2.0,154.79,154.78,0.8063382]
[1727690400802,8.4603,154.79,154.78,0.8063382]
[1727690401487,2.0,154.79,154.78,0.8063382]
[1727690401832,8.4603,154.79,154.78,0.8063382]
[1727690401987,2.0,154.79,154.78,0.8063382]
[1727690406605,8.4603,154.79,154.78,0.8063382]
[1727690406908,8.4624,154.74,154.73,2.15]
[1727690408385,15.14289,154.74,154.73,2.15]
[1727690408912,15.0174,154.74,154.73,2.15]
[1727690409213,2.0,154.67,154.62,3.2269364]
[1727690409420,2.0,154.69,154.64,26.28088157]
[1727690409709,22.66533074,154.79,154.64,26.28088157]
[1727690409710,2.0,154.71,154.64,26.28088157]
[1727690409907,2.0,154.71,154.7,6.4641]
[1727690410119,2.0,154.73,154.64,26.28088157]
[1727690410288,2.0,154.71,154.68,6.4648]
[1727690410494,2.0,154.71,154.65,0.12549]
[1727690410720,2.0,154.71,154.64,26.28088157]
[1727690410889,2.0,154.73,154.67,26.28088157]
[1727690411086,2.0,154.73,154.72,6.4632]
[1727690411388,2.0,154.75,154.7,26.28088157]
[1727690411789,32.5062,154.84,154.7,26.28088157]
[1727690411790,2.0,154.78,154.7,26.28088157]
[1727690412093,2.0,154.75,154.68,0.12549]
[1727690412418,2.0,154.75,154.71,26.28088157]
[1727690412727,2.0,154.77,154.71,26.28088157]
[1727690413018,2.0,154.77,154.76,6.4616]
[1727690413218,7.25518175,154.85,154.74,26.28088157]
[1727690413219,2.0,154.79,154.74,26.28088157]
[1727690413918,2.0,154.81,154.77,26.28088157]
[1727690414222,2.0,154.81,154.71,26.28088157]
[1727690414223,2.0,154.77,154.71,26.28088157]
[1727690414431,2.0,154.75,154.71,26.28088157]
[1727690414714,16.1441,154.86,154.74,26.28088157]
[1727690414715,2.0,154.77,154.74,26.28088157]
[1727690414890,2.0,154.78,154.74,26.28088157]
[1727690416851,2.0,154.78,154.67,20.0]
[1727690416993,2.0,154.76,154.73,26.28088157]
[1727690417193,2.0,154.78,154.73,26.28088157]
[1727690418421,2.0,154.82,154.76,26.28088157]
[1727690418619,2.0,154.8,154.76,26.28088157]
[1727690419401,2.0,154.82,154.76,26.28088157]
[1727690419695,2.0,154.77,154.76,26.28088157]
[1727690420015,2.0,154.79,154.76,26.28088157]
[1727690420323,2.0,154.74,154.71,26.28088157]
[1727690421917,2.0,154.74,154.72,6.4631]
[1727690422424,2.0,154.76,154.71,26.28088157]
[1727690422724,2.0,154.76,154.74,6.4623]
[1727690423403,2.0,154.76,154.71,26.28088157]
[1727690423836,2.0,154.76,154.72,6.463]
[1727690424003,2.0,154.76,154.71,26.28088157]
[1727690424717,2.0,154.76,154.74,26.28088157]
[1727690425013,2.0,154.78,154.74,26.28088157]
[1727690425207,2.0,154.76,154.74,26.28088157]
[1727690425739,2.0,154.77,154.74,26.28088157]
[1727690426912,2.0,154.79,154.74,26.28088157]
[1727690427316,2.0,154.79,154.75,0.12549]
[1727690427514,2.0,154.81,154.77,26.28088157]
[1727690427713,2.0,154.81,154.78,1.29189559]
[1727690427937,22.7246,154.9,154.77,26.28088157]
[1727690428232,2.0,154.83,154.78,0.12549]
[1727690428725,2.0,154.83,154.77,26.28088157]
[1727690429033,6.4586,154.84,154.77,26.28088157]
[1727690429034,2.0,154.81,154.77,26.28088157]
[1727690429330,2.0,154.83,154.77,26.28088157]
[1727690429528,2.0,154.83,154.78,0.25098]
[1727690429734,2.0,154.83,154.78,0.12549]
[1727690429912,2.0,154.83,154.77,26.28088157]
[1727690430613,2.0,154.83,154.78,0.12549]
[1727690431235,2.0,154.83,154.78,0.25098]
[1727690431403,2.0,154.85,154.78,0.25098]
[1727690431604,2.0,154.83,154.78,0.12549]
[1727690431923,8.4587,154.83,154.77,26.28088157]
[1727690432104,2.0,154.79,154.74,42.17618157]
[1727690432540,2.0,154.81,154.74,42.17618157]
[1727690433542,2.0,154.79,154.74,42.17618157]
[1727690434032,8.4604,154.79,154.74,26.28088157]
[1727690434410,2.0,154.77,154.71,6.0153]
[1727690434612,16.1469,154.83,154.69,16.3558]
[1727690434613,2.0,154.75,154.69,42.63668157]
[1727690435131,6.0135,154.81,154.69,42.63668157]
[1727690435132,2.0,154.77,154.69,42.63668157]
[1727690435931,2.0,154.77,154.72,26.28088157]
[1727690436307,2.0,154.77,154.73,0.12549]
[1727690436536,2.0,154.79,154.73,0.12549]
[1727690436745,2.0,154.79,154.73,0.25098]
[1727690437032,2.0,154.79,154.75,26.28088157]
[1727690437839,2.0,154.82,154.76,0.25098]
[1727690438936,2.0,154.8,154.76,0.25098]
[1727690439232,32.1987,154.89,154.78,26.28088157]
[1727690439233,2.0,154.82,154.78,26.28088157]
[1727690441226,2.0,154.82,154.76,0.25098]
[1727690441423,2.0,154.8,154.74,26.28088157]
[1727690442538,2.0,154.82,154.74,26.28088157]
[1727690443315,2.0,154.82,154.77,26.28088157]
[1727690444434,2.0,154.82,154.78,0.25098]
[1727690444731,2.0,154.82,154.77,26.28088157]
[1727690445736,2.0,154.84,154.78,0.25098]
[1727690446119,6.5997,154.8,154.68,6.0131]
[1727690446321,6.4628,154.74,154.65,12.41942119]
[1727690446541,2.0,154.75,154.67,26.28088157]
[1727690446756,2.0,154.73,154.67,26.28088157]
[1727690447121,2.0,154.71,154.67,26.28088157]
[1727690447450,2.0,154.71,154.68,1.29275855]
[1727690447620,2.0,154.71,154.67,26.28088157]
[1727690448266,2.0,154.69,154.62,3.2269364]
[1727690448538,2.0,154.69,154.64,6.4665]
[1727690448744,2.0,154.69,154.65,6.466]
[1727690448925,2.0,154.69,154.65,26.28088157]
[1727690449128,2.0,154.73,154.7,6.464]
[1727690449336,2.0,154.75,154.71,7.75587845]
[1727690449639,2.0,154.75,154.71,6.4634]
[1727690449847,2.0,154.75,154.69,6.4644]
[1727690450020,2.0,154.75,154.7,6.4639]
[1727690450340,2.0,154.73,154.68,26.28088157]
[1727690450527,2.0,154.75,154.69,0.25098]
[1727690450855,2.0,154.75,154.72,6.58859]
[1727690451030,2.0,154.77,154.72,0.12549]
[1727690451236,2.0,154.77,154.74,26.28088157]
[1727690451432,2.0,154.79,154.75,7.75388779]
[1727690451740,2.0,154.81,154.76,6.58689]
[1727690452149,2.0,154.81,154.77,27.57282019]
[1727690452322,2.0,154.81,154.78,0.12549]
[1727690452519,2.0,154.81,154.78,0.25098]
[1727690452737,2.0,154.81,154.78,0.12549]
[1727690454139,2.0,154.81,154.77,26.28088157]
[1727690454854,2.0,154.81,154.72,20.25098]
[1727690455151,2.0,154.75,154.7,32.56778157]
[1727690455334,2.0,154.75,154.7,26.28088157]
[1727690457353,2.0,154.75,154.71,6.4635]
[1727690457559,2.0,154.75,154.72,6.4632]
[1727690459628,2.0,154.75,154.71,6.4635]
[1727690460545,2.0,154.73,154.7,32.74498157]
[1727690461151,2.0,154.73,154.68,0.12549]
[1727690461532,2.0,154.73,154.69,6.4644]
[1727690462031,2.0,154.73,154.67,26.28088157]
[1727690462233,2.0,154.73,154.69,6.4645]
[1727690462449,2.0,154.73,154.67,26.28088157]
[1727690462632,2.0,154.73,154.7,6.464]
[1727690462833,2.0,154.73,154.67,26.28088157]
[1727690463156,2.0,154.73,154.68,6.4647]
[1727690463157,8.463,154.73,154.68,6.4647]
[1727690463356,2.0,154.71,154.67,26.28088157]
[1727690464267,2.0,154.76,154.7,26.28088157]
[1727690464556,2.0,154.76,154.75,6.462]
[1727690465254,2.0,154.79,154.77,6.4608]
[1727690465656,2.0,154.79,154.74,0.12549]
[1727690465858,2.0,154.74,154.73,26.28088157]
[1727690466237,2.0,154.74,154.7,26.28088157]
[1727690466661,2.0,154.72,154.7,26.28088157]
[1727690467163,2.0,154.72,154.64,15.509]
[1727690467164,2.0,154.72,154.67,26.28088157]
[1727690467557,2.0,154.74,154.7,26.28088157]
[1727690468048,2.0,154.74,154.72,6.4632]
[1727690468446,2.0,154.74,154.73,6.4628]
[1727690468645,2.0,154.74,154.7,26.28088157]
[1727690468646,2.0,154.74,154.71,0.12549]
[1727690468867,2.0,154.74,154.71,6.4633]
[1727690469345,2.0,154.72,154.67,26.28088157]
[1727690469555,2.0,154.72,154.7,6.4641]
[1727690469746,2.0,154.72,154.67,26.28088157]
[1727690470343,2.0,154.7,154.67,26.28088157]
[1727690470564,6.4628,154.73,154.62,3.2269364]
[1727690470565,8.467,154.63,154.62,3.2269364]
[1727690471443,16.0614,154.62,154.47,0.8063382]
[1727690471645,2.0,154.57,154.52,0.5807088]
[1727690472251,2.0,154.58,154.55,26.28088157]
[1727690472455,2.0,154.58,154.52,0.5807088]
[1727690472762,2.0,154.58,154.54,26.28088157]
[1727690473144,2.0,154.58,154.52,0.5807088]
[1727690473344,2.0,154.56,154.52,1.4372505]
[1727690473553,2.0,154.56,154.53,1.29395065]
[1727690473766,2.0,154.56,154.52,1.4372505]
[1727690474873,2.0,154.56,154.53,26.28088157]
[1727690475545,2.0,154.54,154.53,26.28088157]
[1727690475758,2.0,154.54,154.52,1.4372505]
[1727690476910,2.0,154.54,154.53,1.29415892]
[1727690477169,2.0,154.56,154.53,1.29415892]
[1727690477469,2.0,154.54,154.52,1.4372505]
[1727690478072,2.0,154.56,154.53,1.29413528]
[1727690478247,2.0,154.54,154.52,1.4372505]
[1727690479065,2.0,154.56,154.53,1.29400349]
[1727690479272,2.0,154.56,154.52,1.4372505]
[1727690481151,2.0,154.56,154.53,26.28088157]
[1727690481453,2.0,154.58,154.54,1.29389662]
[1727690481660,2.0,154.58,154.52,1.5627405]
[1727690481661,2.0,154.6,154.56,26.28088157]
[1727690482054,2.0,154.62,154.57,0.25098]
[1727690482254,6.4237,154.63,154.56,26.28088157]
[1727690482255,2.0,154.6,154.56,26.28088157]
[1727690482771,2.0,154.6,154.57,0.25098]
[1727690482970,2.0,154.62,154.59,26.28088157]
[1727690483975,16.225,154.67,154.59,26.28088157]
[1727690483976,2.0,154.6,154.59,26.28088157]
[1727690485278,2.0,154.62,154.59,26.28088157]
[1727690485865,2.0,154.6,154.59,26.28088157]
[1727690486497,2.0,154.62,154.59,26.28088157]
[1727690487260,2.0,154.64,154.6,24.027864]
[1727690487569,2.0,154.64,154.62,26.28088157]
[1727690488483,2.0,154.66,154.62,27.33259747]
[1727690489866,2.0,154.68,154.65,26.28088157]
[1727690490263,2.0,154.66,154.65,26.28088157]
[1727690490479,2.0,154.66,154.63,0.12549]
[1727690490683,2.0,154.66,154.63,0.25098]
[1727690490891,15.4348,154.72,154.63,24.027864]